bitfinex-derivatives/quotes_BTCF0:USTF0_20250130
["timestamp","ask_amount","ask_price","bid_price","bid_amount"]
[1738264246995,0.80841428,105650.0,105640.0,0.16836655]
[1738264247199,0.74064414,105650.0,105640.0,0.16836655]
[1738264248708,0.77614088,105650.0,105640.0,0.16836655]
[1738264250998,0.189312,105640.0,105630.0,0.50946958]
[1738264251302,0.550112,105640.0,105630.0,0.61273646]
[1738264251497,0.550112,105640.0,105630.0,0.64443646]
[1738264251803,0.189312,105640.0,105630.0,0.64443646]
[1738264252202,0.189312,105640.0,105630.0,0.64543646]
[1738264253607,0.189312,105640.0,105630.0,0.54216958]
[1738264254198,0.58297813,105650.0,105640.0,0.189312]
[1738264254411,0.72472102,105650.0,105640.0,0.189312]
[1738264254610,1.08552102,105650.0,105640.0,0.189312]
[1738264255306,1.06064102,105650.0,105640.0,0.189312]
[1738264255498,1.08652102,105650.0,105640.0,0.189312]
[1738264255803,1.08752102,105650.0,105640.0,0.189312]
[1738264256804,1.06164102,105650.0,105640.0,0.189312]
[1738264257003,1.08752102,105650.0,105640.0,0.189312]
[1738264258804,0.31336514,105650.0,105640.0,0.29257888]
[1738264258992,0.14374289,105650.0,105640.0,0.71807888]
[1738264260195,0.14374289,105650.0,105640.0,0.74395888]
[1738264262595,0.14374289,105650.0,105640.0,0.71807888]
[1738264263204,0.33303689,105650.0,105640.0,0.71807888]
[1738264263501,0.14374289,105650.0,105640.0,0.71807888]
[1738264263906,0.33303689,105650.0,105640.0,0.74391888]
[1738264264108,0.191294,105650.0,105640.0,1.13672444]
[1738264264310,0.191294,105650.0,105640.0,1.14621763]
[1738264265402,0.191294,105650.0,105640.0,0.94291756]
[1738264265604,0.253994,105650.0,105640.0,0.58211756]
[1738264265912,0.35726088,105650.0,105640.0,0.39280556]
[1738264266100,0.38996088,105650.0,105640.0,0.58211756]
[1738264267701,0.286694,105650.0,105640.0,0.58211756]
[1738264268210,0.40004439,105650.0,105640.0,0.189312]
[1738264270613,0.50331127,105650.0,105640.0,0.189312]
[1738264271913,0.40004439,105650.0,105640.0,0.189312]
[1738264273511,0.40951509,105650.0,105640.0,0.189312]
[1738264278013,0.40951509,105650.0,105640.0,0.550112]
[1738264278309,0.37681509,105650.0,105640.0,0.550112]
[1738264278507,0.36734439,105650.0,105640.0,0.550112]
[1738264278704,0.36734439,105650.0,105640.0,0.65337888]
[1738264278908,0.36734439,105650.0,105640.0,0.550112]
[1738264279317,0.36734439,105650.0,105640.0,0.65337888]
[1738264279513,0.36734439,105650.0,105640.0,0.550112]
[1738264280510,0.11535039,105650.0,105640.0,0.72921888]
[1738264280708,0.11535039,105650.0,105640.0,0.79161888]
[1738264280914,0.11535039,105650.0,105640.0,0.74161888]
[1738264281108,0.11535039,105650.0,105640.0,2.24161888]
[1738264281516,0.11535039,105650.0,105640.0,0.74161888]
[1738264283418,0.002,105650.0,105640.0,0.90998543]
[1738264284809,0.002,105650.0,105640.0,0.88414543]
[1738264285010,0.002,105650.0,105640.0,0.90998543]
[1738264287811,0.002,105650.0,105640.0,0.88414543]
[1738264288014,0.002,105650.0,105640.0,0.90998543]
[1738264292217,0.002,105650.0,105640.0,1.13442444]
[1738264294724,0.002,105650.0,105640.0,1.16663402]
[1738264296320,1e-06,105650.0,105640.0,1.28437225]
[1738264296611,1e-06,105650.0,105640.0,2.78437225]
[1738264297327,1e-06,105650.0,105640.0,2.71663402]
[1738264298611,0.11349297,105660.0,105650.0,0.189294]
[1738264298814,0.11349297,105660.0,105650.0,0.89568228]
[1738264299819,0.00114258,105660.0,105650.0,0.89568228]
[1738264300019,0.00114258,105660.0,105650.0,0.92152228]
[1738264304128,0.00114258,105660.0,105650.0,1.31279792]
[1738264304321,0.91327722,105690.0,105650.0,1.12350392]
[1738264304633,1.0164655,105690.0,105680.0,0.18924]
[1738264305115,0.91327722,105690.0,105680.0,0.18924]
[1738264305320,0.18924,105680.0,105670.0,0.550054]
[1738264305522,0.189276,105660.0,105650.0,0.40298126]
[1738264305726,0.65326428,105660.0,105650.0,0.39369534]
[1738264305920,0.67910428,105660.0,105650.0,0.39369534]
[1738264306226,0.189276,105660.0,105650.0,0.58298934]
[1738264306432,0.189276,105660.0,105650.0,0.68617762]
[1738264306623,0.550076,105660.0,105650.0,0.68617762]
[1738264306819,0.550076,105660.0,105650.0,0.58298934]
[1738264307024,0.551076,105660.0,105650.0,0.58298934]
[1738264307823,0.551076,105660.0,105650.0,0.58198934]
[1738264308024,0.551076,105660.0,105650.0,0.1907137]
[1738264308025,0.66442639,105660.0,105650.0,0.1907137]
[1738264311738,0.74938554,105660.0,105650.0,0.1907137]
[1738264312035,0.75896289,105660.0,105650.0,0.1907137]
[1738264313336,0.39816289,105660.0,105650.0,0.1907137]
[1738264313737,0.39816289,105660.0,105650.0,0.189294]
[1738264313934,0.39816289,105660.0,105650.0,0.29248228]
[1738264314536,0.39816289,105660.0,105650.0,0.189294]
[1738264314935,0.2848125,105660.0,105650.0,0.189294]
[1738264318947,0.74880078,105660.0,105650.0,0.189294]
[1738264320533,0.71336237,105660.0,105650.0,0.189294]
[1738264321441,0.71336237,105660.0,105650.0,0.25704387]
[1738264322535,0.6456125,105660.0,105650.0,0.189294]
[1738264322735,0.75896289,105660.0,105650.0,0.189294]
[1738264323138,0.39816289,105660.0,105650.0,0.189294]
[1738264323842,0.75896289,105660.0,105650.0,0.189294]
[1738264324845,0.75896289,105660.0,105650.0,0.29252408]
[1738264325043,0.75896289,105660.0,105650.0,0.189294]
[1738264326544,0.39816289,105660.0,105650.0,0.189294]
[1738264326751,0.38858554,105660.0,105650.0,0.29252408]
[1738264327052,0.38858554,105660.0,105650.0,0.189294]
[1738264328344,0.189294,105650.0,105640.0,0.00014258]
[1738264328547,0.77316408,105650.0,105640.0,0.00014258]
[1738264329744,0.77316408,105650.0,105640.0,0.00114258]
[1738264329942,0.189312,105640.0,105630.0,0.48768956]
[1738264330252,0.65334208,105640.0,105630.0,0.48768956]
[1738264331350,0.65334208,105640.0,105630.0,0.48968956]
[1738264331744,0.65334208,105640.0,105630.0,0.49368956]
[1738264331947,0.65334208,105640.0,105630.0,0.326]
[1738264332539,0.67918208,105640.0,105630.0,0.326]
[1738264334853,0.68868684,105640.0,105630.0,0.326]
[1738264337347,0.79191692,105640.0,105630.0,0.326]
[1738264337552,0.189365,105610.0,105600.0,0.20720596]
[1738264337754,0.29259508,105610.0,105600.0,0.20720596]
[1738264337948,0.65339508,105610.0,105590.0,0.19928956]
[1738264338148,0.65339508,105610.0,105590.0,0.16768956]
[1738264338149,0.75664316,105600.0,105590.0,0.16768956]
[1738264338451,0.78248316,105600.0,105590.0,0.16768956]
[1738264338847,0.67925308,105600.0,105590.0,0.16768956]
[1738264339045,0.29261308,105600.0,105590.0,0.16768956]
[1738264339546,0.65341308,105600.0,105590.0,0.17668956]
[1738264340753,0.65341308,105600.0,105590.0,0.18068956]
[1738264342856,0.65341308,105600.0,105590.0,0.013]
[1738264343653,0.66294511,105600.0,105590.0,0.013]
[1738264347659,0.76617519,105600.0,105590.0,0.013]
[1738264350462,0.79657519,105600.0,105590.0,0.013]
[1738264351262,0.88131105,105600.0,105590.0,0.013]
[1738264356475,0.80392097,105600.0,105590.0,0.013]
[1738264357157,0.77352097,105600.0,105590.0,0.013]
[1738264357351,0.77352097,105600.0,105590.0,0.045]
[1738264360165,0.8021355,105600.0,105590.0,0.045]
[1738264361863,0.69890542,105600.0,105590.0,0.234401]
[1738264362067,0.8021355,105600.0,105590.0,0.045]
[1738264364064,0.94387839,105600.0,105590.0,0.045]
[1738264366157,0.94387839,105600.0,105590.0,0.041]
[1738264366462,0.94387839,105600.0,105590.0,0.044]
[1738264366868,0.94387839,105600.0,105590.0,0.035]
[1738264367165,0.94387839,105600.0,105590.0,0.042]
[1738264368171,0.830528,105600.0,105590.0,0.042]
[1738264371768,0.830528,105600.0,105590.0,0.231401]
[1738264371769,0.72729792,105600.0,105590.0,0.231401]
[1738264372173,0.830528,105600.0,105590.0,0.231401]
[1738264372771,0.85840736,105600.0,105590.0,0.231401]
[1738264372973,0.83256736,105600.0,105590.0,0.231401]
[1738264373175,0.85840736,105600.0,105590.0,0.042]
[1738264374279,0.83256736,105600.0,105590.0,0.042]
[1738264374582,0.85840736,105600.0,105590.0,0.042]
[1738264374765,0.96163744,105600.0,105590.0,0.01]
[1738264374969,0.189419,105580.0,105570.0,0.16768956]
[1738264375171,1.04008908,105580.0,105570.0,0.16768956]
[1738264375385,1.14331916,105580.0,105570.0,0.16768956]
[1738264375680,1.04008908,105580.0,105570.0,0.16768956]
[1738264376272,1.04008908,105580.0,105570.0,0.39127564]
[1738264376572,1.04008908,105580.0,105570.0,0.40027564]
[1738264376573,1.04108908,105580.0,105570.0,0.40027564]
[1738264377579,1.04008908,105580.0,105570.0,0.39127564]
[1738264377888,1.04108908,105580.0,105570.0,0.39727564]
[1738264379181,1.04108908,105580.0,105570.0,0.39927564]
[1738264381784,1.18292594,105580.0,105570.0,0.23158608]
[1738264381975,1.18292594,105580.0,105570.0,0.008]
[1738264383074,1.15708594,105580.0,105570.0,0.008]
[1738264383275,1.15708594,105580.0,105570.0,0.197437]
[1738264383475,0.82212594,105580.0,105570.0,0.197437]
[1738264383877,0.43548594,105580.0,105570.0,0.558237]
[1738264384077,0.16976483,105590.0,105570.0,0.68203008]
[1738264384385,0.189385,105600.0,105590.0,0.189401]
[1738264384573,0.56800612,105610.0,105590.0,0.10323008]
[1738264384777,0.75737812,105610.0,105600.0,0.189383]
[1738264385176,0.7476548,105610.0,105600.0,0.29261308]
[1738264385373,0.7476548,105610.0,105600.0,0.189383]
[1738264385988,0.3868548,105610.0,105600.0,0.189383]
[1738264386190,0.49008488,105610.0,105600.0,0.189383]
[1738264386497,0.85088488,105610.0,105600.0,0.189383]
[1738264386688,0.189383,105600.0,105590.0,0.22043558]
[1738264386873,0.550183,105600.0,105590.0,0.22043558]
[1738264387470,0.65341308,105600.0,105590.0,0.03104258]
[1738264387670,0.75664316,105600.0,105590.0,0.00014258]
[1738264388087,0.65341308,105600.0,105590.0,0.00014258]
[1738264388781,0.67925308,105600.0,105590.0,0.00014258]
[1738264389090,0.67925308,105600.0,105590.0,0.00114258]
[1738264389585,0.71085308,105600.0,105590.0,0.00114258]
[1738264389780,0.81408316,105600.0,105590.0,0.00114258]
[1738264390189,0.82411686,105600.0,105590.0,0.00114258]
[1738264391580,0.92734694,105600.0,105590.0,0.00114258]
[1738264391780,0.82411686,105600.0,105590.0,0.00114258]
[1738264392790,0.92734694,105600.0,105590.0,0.00114258]
[1738264393692,0.81408316,105600.0,105590.0,0.00114258]
[1738264393888,0.71085308,105600.0,105590.0,0.00114258]
[1738264395389,0.81408316,105600.0,105590.0,0.00114258]
[1738264395590,0.71085308,105600.0,105590.0,0.00114258]
[1738264396587,0.72024576,105600.0,105590.0,0.00114258]
[1738264398793,0.69440576,105600.0,105590.0,0.00114258]
[1738264398982,0.72024576,105600.0,105590.0,0.00114258]
[1738264401195,0.9184705,105600.0,105590.0,0.00114258]
[1738264403890,0.8926305,105600.0,105590.0,0.00114258]
[1738264404094,0.9184705,105600.0,105590.0,0.00114258]
[1738264409616,0.83351704,105600.0,105590.0,0.00114258]
[1738264410216,0.83351704,105600.0,105590.0,0.19054358]
[1738264410512,0.86351704,105600.0,105590.0,0.19054358]
[1738264410811,0.86351704,105600.0,105590.0,0.00114258]
[1738264417620,1.02344628,105600.0,105590.0,0.00114258]
[1738264419822,0.9202162,105600.0,105590.0,0.00114258]
[1738264420924,0.75024576,105600.0,105590.0,0.00114258]
[1738264421113,0.85347584,105600.0,105590.0,0.00114258]
[1738264421515,0.75024576,105600.0,105590.0,0.00114258]
[1738264421818,0.85347584,105600.0,105590.0,0.00114258]
[1738264422118,0.75024576,105600.0,105590.0,0.00114258]
[1738264422725,0.85347584,105600.0,105590.0,0.00114258]
[1738264424727,0.75024576,105600.0,105590.0,0.00114258]
[1738264425422,0.85347584,105600.0,105590.0,0.00114258]
[1738264426630,0.75024576,105600.0,105590.0,0.00114258]
[1738264427529,0.72440576,105600.0,105590.0,0.00114258]
[1738264427722,0.75024576,105600.0,105590.0,0.00114258]
[1738264437235,0.89220435,105600.0,105590.0,0.00114258]
[1738264437535,0.76313427,105600.0,105590.0,0.00114258]
[1738264437737,0.78897427,105600.0,105590.0,0.00114258]
[1738264437932,0.78897427,105600.0,105590.0,0.03344258]
[1738264438138,0.76313427,105600.0,105590.0,0.03344258]
[1738264438338,0.78897427,105600.0,105590.0,0.03344258]
[1738264439338,0.89220435,105600.0,105590.0,0.03344258]
[1738264442433,0.86636435,105600.0,105590.0,0.00114258]
[1738264442748,0.70153427,105600.0,105590.0,0.29377366]
[1738264443037,0.70153427,105600.0,105590.0,0.32397366]
[1738264445225,0.70153427,105600.0,105590.0,0.03134258]
[1738264445430,0.80476435,105600.0,105590.0,0.00114258]
[1738264445633,0.89435607,105600.0,105590.0,0.00114258]
[1738264446730,0.79112599,105600.0,105590.0,0.00114258]
[1738264447132,0.89435607,105600.0,105590.0,0.00114258]
[1738264448337,0.92525607,105600.0,105590.0,0.00114258]
[1738264452339,0.89677841,105600.0,105590.0,0.00114258]
[1738264460638,0.86138095,105600.0,105590.0,0.00114258]
[1738264465642,0.50058095,105600.0,105590.0,0.19054358]
[1738264465847,0.88718095,105600.0,105590.0,0.19054358]
[1738264466450,0.88718095,105600.0,105590.0,0.00114258]
[1738264466649,0.91565861,105600.0,105590.0,0.00114258]
[1738264468353,0.91565861,105600.0,105590.0,0.19054358]
[1738264469042,0.88985861,105600.0,105590.0,0.00114258]
[1738264469349,0.91565861,105600.0,105590.0,0.00114258]
[1738264471445,0.98349123,105600.0,105590.0,0.00114258]
[1738264471651,0.75371686,105580.0,105550.0,0.33711426]
[1738264471954,0.189473,105550.0,105540.0,0.34367457]
[1738264472136,0.189473,105550.0,105540.0,0.24997276]
[1738264472137,0.71173824,105550.0,105540.0,0.24997276]
[1738264472339,0.189491,105540.0,105530.0,0.84478109]
[1738264472549,0.82011728,105540.0,105530.0,0.84478109]
[1738264473546,0.82011728,105540.0,105530.0,0.84678109]
[1738264474047,0.82011728,105540.0,105530.0,0.45226532]
[1738264475357,0.82111728,105540.0,105530.0,0.45826532]
[1738264477255,0.83069605,105540.0,105530.0,0.45826532]
[1738264477460,0.86289605,105540.0,105530.0,0.45826532]
[1738264478061,0.189509,105530.0,105520.0,0.9436289]
[1738264478361,0.78313528,105530.0,105520.0,0.9436289]
[1738264478653,0.189545,105510.0,105500.0,0.1]
[1738264478846,1.14397128,105510.0,105500.0,0.1]
[1738264480058,1.14397128,105510.0,105500.0,0.103]
[1738264481162,1.14497128,105510.0,105500.0,0.111]
[1738264481562,1.14397128,105510.0,105500.0,0.103]
[1738264481871,1.14497128,105510.0,105500.0,0.11]
[1738264482256,1.04145814,105510.0,105500.0,0.11]
[1738264482464,0.68065814,105510.0,105500.0,0.11]
[1738264482667,1.04145814,105510.0,105500.0,0.11]
[1738264485958,1.02513293,105510.0,105500.0,0.11]
[1738264486165,1.05093293,105510.0,105500.0,0.11]
[1738264494856,0.001,105510.0,105500.0,1.060362]
[1738264495059,0.14275691,105540.0,105530.0,0.189508]
[1738264495370,0.50355691,105540.0,105530.0,0.189508]
[1738264495666,0.69304791,105540.0,105530.0,0.189508]
[1738264496176,0.69162591,105540.0,105530.0,0.189508]
[1738264496462,0.71742591,105540.0,105530.0,0.189508]
[1738264497472,0.576091,105540.0,105530.0,0.189508]
[1738264497972,0.67961314,105540.0,105520.0,0.18965958]
[1738264498157,0.3608,105530.0,105520.0,0.18965958]
[1738264498468,0.77651314,105540.0,105530.0,0.189508]
[1738264500259,0.77651314,105540.0,105520.0,0.00014258]
[1738264500260,0.189508,105530.0,105520.0,0.18966458]
[1738264500565,0.65382114,105530.0,105520.0,0.19266458]
[1738264500965,0.65382114,105530.0,105520.0,0.18966458]
[1738264501776,0.65382114,105530.0,105520.0,0.003]
[1738264501973,0.65382114,105530.0,105520.0,0.193522]
[1738264503179,0.550308,105530.0,105520.0,0.193522]
[1738264503385,0.72065831,105530.0,105520.0,0.193522]
[1738264503870,0.74645831,105530.0,105520.0,0.193522]
[1738264504670,0.75591276,105530.0,105520.0,0.193522]
[1738264506279,0.75591276,105530.0,105520.0,0.29703514]
[1738264507271,0.17980476,105530.0,105520.0,0.29703514]
[1738264507471,0.17035031,105530.0,105520.0,0.65783514]
[1738264507777,0.22502527,105550.0,105520.0,0.73569314]
[1738264507977,0.22502527,105550.0,105540.0,0.29300314]
[1738264508369,0.00974927,105550.0,105540.0,0.32610314]
[1738264508570,0.00014258,105550.0,105540.0,0.35800314]
[1738264508770,0.00014258,105550.0,105540.0,0.85371628]
[1738264509768,0.00314258,105550.0,105540.0,0.38940314]
[1738264510077,0.00314258,105550.0,105540.0,0.39898133]
[1738264510983,0.19361458,105550.0,105540.0,0.39898133]
[1738264511976,0.18949,105540.0,105530.0,0.18964758]
[1738264512174,0.61169,105540.0,105530.0,0.18964758]
[1738264512376,0.71520314,105540.0,105530.0,0.18964758]
[1738264512583,0.61169,105540.0,105530.0,0.18964758]
[1738264512783,0.63749,105540.0,105530.0,0.18964758]
[1738264512975,0.74100314,105540.0,105530.0,0.00014258]
[1738264516780,0.84451628,105540.0,105530.0,0.00014258]
[1738264517981,0.85397888,105540.0,105530.0,0.00014258]
[1738264518471,0.99555585,105540.0,105530.0,0.00014258]
[1738264519075,0.99555585,105540.0,105510.0,0.189529]
[1738264519076,0.80606585,105540.0,105510.0,0.189529]
[1738264519380,0.65383914,105520.0,105510.0,0.189529]
[1738264519578,0.67963914,105520.0,105510.0,0.189529]
[1738264519779,0.71023914,105520.0,105510.0,0.189529]
[1738264520377,0.71023914,105520.0,105510.0,0.191529]
[1738264520682,0.71023914,105520.0,105510.0,0.002]
[1738264520683,1.07103914,105520.0,105510.0,0.002]
[1738264520879,1.07203914,105520.0,105510.0,0.008]
[1738264521076,1.07203914,105520.0,105510.0,0.006]
[1738264521276,1.07203914,105520.0,105510.0,0.008]
[1738264521587,1.04623914,105520.0,105510.0,0.008]
[1738264521780,1.07203914,105520.0,105510.0,0.008]
[1738264523086,1.21361611,105520.0,105510.0,0.008]
[1738264524186,1.21361611,105520.0,105510.0,0.006]
[1738264524387,0.189544,105510.0,105500.0,0.28965504]
[1738264524582,0.65385714,105510.0,105500.0,0.28965504]
[1738264528380,0.75737028,105510.0,105500.0,0.10009504]
[1738264528575,0.82127028,105510.0,105500.0,0.10009504]
[1738264529079,0.71775714,105510.0,105500.0,0.10009504]
[1738264529478,0.82127028,105510.0,105500.0,0.10009504]
[1738264529879,0.71775714,105510.0,105500.0,0.10009504]
[1738264531888,0.82127028,105510.0,105500.0,0.10009504]
[1738264534193,0.82227028,105510.0,105500.0,0.10009504]
[1738264534782,0.82527028,105510.0,105500.0,0.10009504]
[1738264538490,0.82827028,105510.0,105500.0,0.10109504]
[1738264538685,0.63872628,105510.0,105490.0,0.0014217]
[1738264538887,0.71237514,105500.0,105490.0,0.0014217]
[1738264540299,0.71637514,105500.0,105490.0,0.0014217]
[1738264540483,0.71637514,105500.0,105470.0,0.0964]
[1738264540689,1.01471114,105480.0,105470.0,0.0313]
[1738264540890,1.04051114,105480.0,105470.0,0.0313]
[1738264541197,1.07101114,105480.0,105470.0,0.0313]
[1738264541599,1.07101114,105480.0,105450.0,0.51918522]
[1738264541600,0.189634,105460.0,105450.0,0.51918522]
[1738264541796,0.189634,105460.0,105450.0,0.62269836]
[1738264543104,0.189634,105460.0,105450.0,0.51918522]
[1738264543903,0.189634,105460.0,105450.0,0.52218522]
[1738264544608,0.190634,105460.0,105450.0,0.52918522]
[1738264545312,0.190634,105460.0,105450.0,0.62869836]
[1738264545313,0.189634,105460.0,105450.0,0.62869836]
[1738264545697,0.189634,105460.0,105450.0,0.62569836]
[1738264545898,0.189634,105460.0,105450.0,0.40264349]
[1738264546999,0.18976858,105470.0,105460.0,0.189634]
[1738264547201,0.18976858,105470.0,105460.0,0.29314714]
[1738264547401,0.18976858,105470.0,105460.0,0.189634]
[1738264550108,0.18976858,105470.0,105460.0,0.190634]
[1738264550503,0.18976858,105470.0,105460.0,0.193634]
[1738264554715,0.18976858,105470.0,105460.0,0.29714714]
[1738264557918,0.18976858,105470.0,105460.0,0.193634]
[1738264558410,0.65408172,105470.0,105460.0,0.193634]
[1738264558813,0.55056858,105470.0,105460.0,0.192634]
[1738264559013,0.55056858,105470.0,105460.0,0.193634]
[1738264559412,0.55056858,105470.0,105460.0,0.29714714]
[1738264559813,0.55056858,105470.0,105460.0,0.29614714]
[1738264560511,0.18976858,105470.0,105460.0,0.29630527]
[1738264560715,0.00014258,105470.0,105460.0,0.29630527]
[1738264561518,0.18975858,105470.0,105460.0,0.19379213]
[1738264562119,0.30313782,105470.0,105460.0,0.19379213]
[1738264564215,0.30313782,105470.0,105460.0,0.19079213]
[1738264564421,0.30313782,105470.0,105460.0,0.19379213]
[1738264564615,0.11352182,105470.0,105460.0,0.55459213]
[1738264564811,0.14157697,105480.0,105460.0,0.51847127]
[1738264565016,0.14157697,105480.0,105470.0,0.75082914]
[1738264565815,0.14157697,105480.0,105470.0,0.39002914]
[1738264566127,0.33117497,105480.0,105470.0,0.286516]
[1738264568623,0.33117497,105480.0,105470.0,0.221216]
[1738264569323,0.69197497,105480.0,105470.0,0.221216]
[1738264569518,0.79548811,105480.0,105470.0,0.189616]
[1738264569828,0.79548811,105480.0,105460.0,0.00030071]
[1738264569829,0.189616,105470.0,105460.0,0.00030071]
[1738264570126,0.65392914,105470.0,105460.0,0.00030071]
[1738264570325,0.65392914,105470.0,105460.0,0.41398958]
[1738264570519,0.550416,105470.0,105460.0,0.41398958]
[1738264573122,0.550416,105470.0,105460.0,0.51750272]
[1738264573922,0.550416,105470.0,105460.0,0.29344785]
[1738264573923,0.69199297,105470.0,105460.0,0.29344785]
[1738264574125,0.69199297,105470.0,105460.0,0.29444785]
[1738264574821,0.50237697,105470.0,105460.0,0.29344785]
[1738264575022,0.14157697,105470.0,105460.0,0.65524785]
[1738264575221,0.14157697,105470.0,105460.0,0.65824785]
[1738264576820,0.33119297,105470.0,105460.0,0.65824785]
[1738264577833,0.189616,105470.0,105460.0,0.65824785]
[1738264578024,0.59617697,105480.0,105460.0,0.46861385]
[1738264578331,0.75417797,105480.0,105470.0,0.29312914]
[1738264578630,0.75417797,105480.0,105470.0,0.32462914]
[1738264581731,0.14157697,105480.0,105470.0,0.68542914]
[1738264584331,0.33117497,105480.0,105470.0,0.68542914]
[1738264585432,0.33117497,105480.0,105470.0,0.69500851]
[1738264585838,0.189598,105480.0,105470.0,0.69500851]
[1738264586334,0.189598,105480.0,105470.0,0.550416]
[1738264586543,0.65391114,105480.0,105470.0,0.189616]
[1738264586840,0.189616,105470.0,105460.0,0.69425416]
[1738264587135,0.254016,105470.0,105460.0,0.69425416]
[1738264587837,0.254016,105470.0,105460.0,0.69525416]
[1738264588230,0.71832914,105470.0,105460.0,0.69525416]
[1738264589232,0.71832914,105470.0,105460.0,0.50563216]
[1738264589438,0.71832914,105470.0,105460.0,0.00130071]
[1738264589638,0.189634,105460.0,105450.0,0.22405487]
[1738264589834,0.67974714,105460.0,105450.0,0.22405487]
[1738264590831,0.67974714,105460.0,105450.0,0.22505487]
[1738264591735,0.67974714,105460.0,105450.0,0.22805487]
[1738264592739,0.71264714,105460.0,105450.0,0.22805487]
[1738264593730,1.02409247,105460.0,105450.0,0.004]
[1738264597048,0.85422411,105460.0,105450.0,0.004]
[1738264598040,0.85422411,105460.0,105420.0,0.39126255]
[1738264598041,0.76810325,105460.0,105420.0,0.39126255]
[1738264598243,0.65400114,105430.0,105420.0,0.17095855]
[1738264598551,0.67980114,105430.0,105420.0,0.17095855]
[1738264598746,0.77230114,105430.0,105420.0,0.17095855]
[1738264599044,0.77230114,105430.0,105420.0,0.16953595]
[1738264599247,0.77230114,105430.0,105420.0,0.18053595]
[1738264599849,0.77330114,105430.0,105420.0,0.18053595]
[1738264600547,0.87681428,105430.0,105420.0,0.18053595]
[1738264600743,0.77330114,105430.0,105420.0,0.18053595]
[1738264601646,0.77330114,105430.0,105420.0,0.011]
[1738264602553,0.78280266,105430.0,105420.0,0.011]
[1738264602754,0.8863158,105430.0,105420.0,0.011]
[1738264603053,0.189724,105410.0,105400.0,0.49007195]
[1738264603253,0.67983714,105410.0,105400.0,0.49007195]
[1738264603655,0.71103714,105410.0,105400.0,0.45927195]
[1738264604953,0.71203714,105410.0,105400.0,0.45927195]
[1738264605450,0.71203714,105410.0,105400.0,0.26953595]
[1738264605658,1.07283714,105410.0,105400.0,0.26953595]
[1738264605955,1.10433714,105410.0,105400.0,0.26953595]
[1738264606155,1.10433714,105410.0,105400.0,0.1]
[1738264607047,1.10433714,105410.0,105400.0,0.103]
[1738264610256,0.001,105410.0,105400.0,0.292742]
[1738264610455,0.001,105410.0,105400.0,0.78795514]
[1738264612053,0.001,105410.0,105400.0,0.684442]
[1738264612254,0.190724,105410.0,105400.0,0.684442]
[1738264612457,0.190724,105410.0,105400.0,0.323642]
[1738264612861,0.190724,105410.0,105400.0,0.42715514]
[1738264613965,0.190724,105410.0,105400.0,0.78795514]
[1738264614466,0.190724,105410.0,105400.0,0.42715514]
[1738264615961,0.001,105410.0,105400.0,0.45835514]
[1738264617959,0.001,105410.0,105400.0,0.81915514]
[1738264618366,0.001,105410.0,105400.0,0.86915514]
[1738264618572,0.00014258,105420.0,105410.0,0.189724]
[1738264618866,0.644681,105430.0,105410.0,0.64362628]
[1738264618867,0.094189,105430.0,105410.0,0.64362628]
[1738264619069,0.08468748,105430.0,105420.0,0.65401914]
[1738264620062,0.08568748,105430.0,105420.0,0.65401914]
[1738264620877,0.08568748,105430.0,105420.0,0.67981914]
[1738264621772,0.27537548,105430.0,105420.0,0.550506]
[1738264622073,0.27537548,105430.0,105420.0,0.578306]
[1738264622372,0.190688,105430.0,105420.0,0.578306]
[1738264623172,0.190688,105430.0,105420.0,0.68181914]
[1738264623473,0.001,105430.0,105420.0,0.68181914]
[1738264623666,0.001,105430.0,105420.0,0.78533228]
[1738264623869,0.00014258,105440.0,105430.0,0.189688]
[1738264624168,0.00014258,105440.0,105430.0,0.74970114]
[1738264625366,0.00014258,105440.0,105430.0,0.77550114]
[1738264628165,0.00014258,105440.0,105430.0,0.82550114]
[1738264628366,0.08468748,105450.0,105440.0,0.29318314]
[1738264628681,0.27433948,105450.0,105440.0,0.29318314]
[1738264628867,0.27433948,105450.0,105430.0,0.50392]
[1738264628868,0.18967,105440.0,105430.0,0.285377]
[1738264629066,0.18967,105440.0,105430.0,0.74969014]
[1738264629266,0.69705248,105450.0,105440.0,0.18967]
[1738264629466,0.69719506,105450.0,105440.0,0.18967]
[1738264629669,0.69819506,105450.0,105440.0,0.18967]
[1738264630175,0.69919506,105450.0,105440.0,0.18967]
[1738264630765,0.8352082,105450.0,105440.0,0.18967]
[1738264631666,0.18967,105440.0,105430.0,0.22158]
[1738264632666,0.18967,105440.0,105420.0,0.36094258]
[1738264632868,0.189688,105430.0,105420.0,0.55063758]
[1738264633874,0.222388,105430.0,105420.0,0.55263758]
[1738264634379,0.222388,105430.0,105420.0,0.19183758]
[1738264634581,0.254288,105430.0,105420.0,0.19183758]
[1738264634976,0.615088,105430.0,105420.0,0.00214258]
[1738264635281,0.68938628,105430.0,105410.0,0.16739338]
[1738264635587,0.75753228,105420.0,105410.0,0.06759338]
[1738264636687,0.75753228,105420.0,105410.0,0.07059338]
[1738264637078,0.75853228,105420.0,105410.0,0.07059338]
[1738264637278,0.75853228,105420.0,105410.0,0.06759338]
[1738264637586,0.75853228,105420.0,105410.0,0.07059338]
[1738264638077,0.551506,105420.0,105410.0,0.17410652]
[1738264638284,0.190706,105420.0,105410.0,0.36381152]
[1738264638678,0.190706,105420.0,105410.0,0.72461152]
[1738264638879,0.190706,105420.0,105410.0,0.36381152]
[1738264639488,0.190706,105420.0,105410.0,0.72461152]
[1738264639684,0.190706,105420.0,105410.0,0.36381152]
[1738264640087,0.31244533,105420.0,105410.0,0.29521814]
[1738264640786,0.31244533,105420.0,105410.0,0.65401814]
[1738264640988,0.31244533,105420.0,105410.0,0.65501814]
[1738264641582,0.31244533,105420.0,105410.0,0.551505]
[1738264641781,0.31244533,105420.0,105410.0,0.190705]
[1738264642381,0.31244533,105420.0,105410.0,0.551505]
[1738264642687,0.31244533,105420.0,105410.0,0.190705]
[1738264642888,0.31244533,105420.0,105410.0,0.551505]
[1738264643585,0.50213233,105420.0,105410.0,0.551505]
[1738264644487,0.190687,105420.0,105410.0,0.551505]
[1738264645897,0.001,105420.0,105410.0,0.65501814]
[1738264646084,0.001,105420.0,105410.0,0.74081814]
[1738264653199,0.00014258,105430.0,105420.0,0.189687]
[1738264653388,0.00014258,105430.0,105420.0,0.97781328]
[1738264653693,0.00014258,105430.0,105420.0,0.87430014]
[1738264653891,0.08513551,105430.0,105420.0,0.88376258]
[1738264654694,0.27480451,105430.0,105420.0,0.606547]
[1738264655087,0.27480451,105430.0,105420.0,0.580787]
[1738264655295,0.27480451,105430.0,105420.0,0.606547]